Cogmind - Beta 11.1 *** ADVENTURER MODE // 2022.06.29 @ 11:33:12 Player: JACKBOI Result: Destroyed by Y-64 Sentinel with Wave Gun Performance ------------- Evolutions (3) 1500 Regions Visited (6) 1200 Robots Destroyed (78) 390 Value Destroyed (2640) 2640 Prototype IDs (2) 40 Alien Tech Used (0) 0 Bonus (-141) -141 TOTAL SCORE: 5629 Bonus ------- Friendly Fire -141 Cogmind --------- Core Integrity 0/700 Matter 280/300 Energy 15/100 System Corruption 22% Temperature Cool (35) Movement Core (100) Ox1 Location -7/Lower Caves Parts ------- > --- POWER (3) -------- (None) > --- PROPULSION (3) --- (None) > --- UTILITY (5) ------ (None) > --- WEAPON (2) ------- Heavy Particle Cannon > --- INVENTORY (5) ---- Wheel ECM Suite Improved Light Armor Plating Assault Cannon Peak State ------------ > --- POWER ------------ Light Nuclear Core Light Nuclear Core Improved Deuterium Engine > --- PROPULSION ------- Aluminum Leg Aluminum Leg Aluminum Leg > --- UTILITY ---------- Improved Heat Sink Large Storage Unit ECM Suite Improved Light Armor Plating Hacking Suite > --- WEAPON ----------- Molecular Deconstructor > --- INVENTORY -------- Light Ion Engine Improved Ion Engine Cesium-ion Thruster Improved Heat Sink ECM Suite Improved Light Armor Plating Improved Shield Generator System Restoration Module Shock Rifle Field Laser Heavy Particle Cannon Minigun Gauss Rifle Assault Cannon Flak Cannon [Rating: 46] Favorites ----------- Power Light Ion Engine Engine Light Ion Engine Power Core Light Nuclear Core Propulsion Carbon-fiber Leg Treads Light Treads Leg Carbon-fiber Leg Flight Unit Improved Flight Unit Utility Large Storage Unit Device Improved Heat Sink Storage Large Storage Unit Processor Terrain Scan Processor Hackware Hacking Suite Protection Improved Light Armor Plating Weapon Field Laser Energy Gun Field Laser Energy Cannon Heavy Particle Cannon Ballistic Gun Gauss Rifle Ballistic Cannon Improved Light Cannon Launcher Shock Bomb Launcher Special Weapon Molecular Deconstructor Build | -11 -10 -9 -9 -8 -7 -7 ------- Run | Scr Mat Mat Min Mat Fac Low Slots Evolved 6 | . . 2 . 2 2 . Power 2 | . . 1 . . 1 . Propulsion 1 | . . 1 . . . . Utility 3 | . . . . 2 1 . Weapon . | . . . . . . . Parts Attached 109 | 6 6 6 7 44 18 22 Power 28 | 1 2 3 3 9 6 4 Engine 23 | 1 2 2 3 8 3 4 Core 5 | . . 1 . 1 3 . Reactor . | . . . . . . . Propulsion 19 | 2 2 1 3 6 3 2 Treads 4 | 2 . . . 1 . 1 Leg 9 | . . . . 5 3 1 Wheel . | . . . . . . . Hover . | . . . . . . . Flight 6 | . 2 1 3 . . . Utility 27 | 1 2 . 1 11 6 6 Device 12 | . 1 . . 5 4 2 Storage 5 | 1 1 . 1 . . 2 Processor 2 | . . . . 2 . . Hackware 2 | . . . . 1 . 1 Protection 6 | . . . . 3 2 1 Artifact . | . . . . . . . Weapon 35 | 2 . 2 . 18 3 10 Energy Gun 16 | 1 . 1 . 10 1 3 Energy Cannon 3 | . . . . . 1 2 Ballistic Gun 7 | 1 . . . 4 . 2 Ballistic Cannon 4 | . . 1 . 1 1 1 Launcher 2 | . . . . 2 . . Special Weapon 3 | . . . . 1 . 2 Impact Weapon . | . . . . . . . Slashing Weapon . | . . . . . . . Piercing Weapon . | . . . . . . . Special Melee Weapon . | . . . . . . . Unidentified Prototypes 2 | . 1 . . . . 1 Parts Lost 41 | . . 2 . 15 3 21 Power 13 | . . 1 . 5 1 6 Propulsion 9 | . . . . 4 1 4 Utility 9 | . . . . 1 . 8 Weapon 10 | . . 1 . 5 1 3 Highest Loss Streak 12 | . . 1 . 7 2 12 To Critical Strikes . | . . . . . . . Average Slot Usage (%) 84 | . 93 96 92 78 97 72 Engine 13 | . 14 16 22 11 10 9 Core 3 | . . 2 . 4 10 1 Treads 1 | . 23 . . . . 2 Leg 8 | . . . . 11 21 6 Flight 8 | . 4 33 26 . . . Device 11 | . 7 11 4 13 13 14 Storage 11 | . 14 11 17 9 7 9 Processor 1 | . . . . 5 . . Hackware 2 | . . . . . 7 6 Protection 2 | . . . . 2 8 4 Energy Gun 9 | . 14 10 11 10 5 6 Ballistic Gun 3 | . 14 7 . 5 . 2 Ballistic Cannon 4 | . . 3 11 . 6 3 Naked Turns 8 | . . . . . . 8 Heaviest Build 58 | 12 28 40 41 54 58 55 Greatest Support 40 | 3 40 15 15 40 40 30 Greatest Overweight (x) 17 | 3 9 2 5 17 2 14 Average Overweight (x) 2 | 1 1 1 3 2 1 2 Largest Inventory Capacity 15 | 8 15 15 15 15 15 15 Average Capacity 14 | 7 11 15 15 15 15 14 Most Carried 15 | 4 15 15 15 15 15 15 Average Carried 13 | 2 8 10 14 13 14 13 Final Capacity 15 | 8 15 15 15 15 15 5 Final Carried 15 | 4 12 15 15 15 15 4 Class Distribution -------------------- 69% | Scavenger-Mutant 16% | Mutant 13% | Hacker-Mutant Dominant Class ---------------- Mutant | -10/Materials Mutant | -9/Materials Scavenger-Mutant | -9/Mines Scavenger-Mutant | -8/Materials Scavenger-Mutant | -7/Factory Hacker-Mutant | -7/Lower Caves Resources | -11 -10 -9 -9 -8 -7 -7 ----------- Run | Scr Mat Mat Min Mat Fac Low Matter Collected 2232 | 202 148 120 333 662 430 337 Remotely . | . . . . . . . Salvage Created 3234 | . 188 217 325 1133 524 847 Parts 170 | . 21 15 21 52 32 29 Haulers Intercepted . | . . . . . . . Recyclers Shooed 3 | . . . 1 2 . . Parts Field Recycled . | . . . . . . . Retrieved Matter . | . . . . . . . Parts Self-Destructed 18 | . . . . . . 18 Prevented . | . . . . . . . Kills | -11 -10 -9 -9 -8 -7 -7 ------- Run | Scr Mat Mat Min Mat Fac Low Combat Hostiles Destroyed 60 | . 6 4 9 19 10 12 Guns 33 | . 6 4 5 12 2 4 Cannons 16 | . . . 4 2 8 2 AOE 5 | . . . . 5 . . Classes Destroyed 13 | . 4 1 3 3 1 1 Worker 4 | . . . 2 2 . . Builder 4 | . . . . 3 1 . Tunneler 1 | . 1 . . . . . Recycler 4 | . . . 1 3 . . Watcher 4 | . 2 1 . 1 . . Swarmer 12 | . 5 . 4 3 . . Grunt 24 | . 1 2 4 8 6 3 Brawler 2 | . . . 1 . . 1 Duelist 3 | . . . . 1 . 2 Sentry 11 | . . 2 . 6 3 . Specialist 3 | . . . . . . 3 Hunter 3 | . . . . 1 . 2 Programmer 2 | . . . . . 1 1 Decomposer 1 | . . . . . . 1 Savage 1 | . . . . . . 1 Best Kill Streak 13 | . 3 2 5 13 4 6 Combat Bots Only 6 | . 3 2 2 4 3 6 Max Kills in Single Turn 3 | . 2 1 2 3 2 1 Gunslinging 1 | . 1 . . . . . Exploded 1 | . . . . 1 . . Melee . | . . . . . . . Uniques/NPCs Destroyed . | . . . . . . . Combat | -11 -10 -9 -9 -8 -7 -7 -------- Run | Scr Mat Mat Min Mat Fac Low Damage Taken 5121 | . 130 254 191 1523 847 2176 Core 1059 | . 9 32 21 288 50 659 Absorbed by Shields 176 | . . . . . 171 5 Core Remaining (%) 82 | 100 96 . 86 47 . . Volleys Fired 245 | . 17 19 25 72 54 58 Largest 2 | . 2 2 2 2 2 2 Hottest 130 | . 60 95 95 130 130 107 Shots Fired 424 | . 34 37 50 126 99 78 Gun 308 | . 34 34 25 109 49 57 Cannon 97 | . . 3 25 9 50 10 Launcher 7 | . . . . 7 . . Special 12 | . . . . 1 . 11 Kinetic 162 | . 17 19 25 35 47 19 Thermal 144 | . . 12 25 57 5 45 Explosive 3 | . . . . 3 . . Electromagnetic 104 | . 17 6 . 31 47 3 Robot Hit Streak 52 | . 12 22 16 28 29 52 Robot Miss Streak 5 | . 5 1 2 3 2 2 Penetration Max 1 | . . . . 1 . 1 Secondary Targets 6 | . 1 . . 4 . 1 Max Gunslinging Chain 1 | . 1 . . 1 . 1 Shots Hit Robots 288 | . 18 23 27 84 77 59 Core Hits 146 | . 11 10 15 48 28 34 Critical Kills 2 | . . . . . . 2 Critical Parts Destroyed . | . . . . . . . Critical Strikes 6 | . . . . 1 2 3 Burn 1 | . . . . . . 1 Destroy 2 | . . . . . . 2 Blast 3 | . . . . 1 2 . Melee Attacks . | . . . . . . . Impact . | . . . . . . . Slashing . | . . . . . . . Piercing . | . . . . . . . Sneak Attacks . | . . . . . . . Combat Hostiles . | . . . . . . . Follow-up Attacks . | . . . . . . . Damage Inflicted 5303 | . 283 291 538 1829 1367 995 Guns 3027 | . 282 291 214 1033 418 789 Cannons 1675 | . . . 324 200 949 202 Explosions 587 | . . . . 587 . . Melee . | . . . . . . . Ramming 14 | . 1 . . 9 . 4 Kinetic 2341 | . 113 155 324 475 864 410 Thermal 1673 | . . 72 214 725 125 537 Explosive 334 | . . . . 334 . . Electromagnetic 941 | . 169 64 . 286 378 44 Impact . | . . . . . . . Slashing . | . . . . . . . Piercing . | . . . . . . . Highest Corruption 22 | . . . . 4 1 22 Average Corruption 3 | . . . . 4 1 4 Corruption Purged . | . . . . . . . Corruption Blocked . | . . . . . . . Effects 77 | . . . . 40 1 36 Message Errors 18 | . . . . 7 . 11 Matter Fused 16 | . . . . 12 . 4 Heat Flow Errors 7 | . . . . 4 . 3 Energy Discharges 9 | . . . . 5 . 4 Parts Rejected 1 | . . . . 1 . . Data Loss (minor) 15 | . . . . 5 . 10 Data Loss (major) 4 | . . . . 1 1 2 Misfires 2 | . . . . . . 2 Alerts 2 | . . . . 2 . . Weapon Failures 3 | . . . . 3 . . Overload Shots . | . . . . . . . Overflow Damage 66 | . . . . 64 2 . Projectiles 2 | . . . . . 2 . Explosions 64 | . . . . 64 . . Melee . | . . . . . . . Knockbacks 19 | . . . 5 . 9 5 Impact . | . . . . . . . Kinetic 19 | . . . 5 . 9 5 Secondary . | . . . . . . . Self-Inflicted Damage 331 | . . 36 . 293 . 2 Shots 15 | . . 2 . 13 . . Rammed 4 | . 1 . . 1 . 2 Targets Rammed 4 | . 1 . . 1 . 2 Kicked . | . . . . . . . Crushed . | . . . . . . . Highest Temperature 547 | . 12 174 547 440 283 210 Average Temperature 103 | . 8 67 161 111 93 48 Received Heat Transfer 1826 | . 12 105 102 612 422 573 Effects 22 | . . . 12 8 2 . Shutdowns 5 | . . . 4 1 . . Energy Bleed 2 | . . . 1 1 . . Interference 9 | . . . 2 5 2 . Matter Decay 3 | . . . 2 1 . . Short Circuit 3 | . . . 3 . . . Siege Activations . | . . . . . . . Robots Corrupted . | . . . . . . . Combat Hostiles . | . . . . . . . Parts Fried 1 | . . . . 1 . . Impact Corruptions . | . . . . . . . Robots Melted . | . . . . . . . Combat Hostiles . | . . . . . . . Parts Melted 4 | . . 1 . 3 . . Heat Transferred 3524 | . . 185 555 1378 185 1221 Parts Sabotaged . | . . . . . . . Parts Stolen . | . . . . . . . Parts Stripped . | . . . . . . . Power Chain Reactions 6 | . . 1 . 5 . . Missiles Intercepted . | . . . . . . . Alert | -11 -10 -9 -9 -8 -7 -7 ------- Run | Scr Mat Mat Min Mat Fac Low Peak Influence 228 | . 179 172 139 228 125 . Initial 25 | . . . . . 25 . Average 56 | . 79 68 25 66 70 . Maximum Alert Level 1 | . . . . 1 . . Low Security (%) 96 | 100 100 100 100 91 100 . Level 1 3 | . . . . 8 . . Level 2 . | . . . . . . . Level 3 . | . . . . . . . Level 4 . | . . . . . . . Level 5 . | . . . . . . . High Security . | . . . . . . . Max Security . | . . . . . . . Squads Dispatched 7 | . 1 . 1 2 3 . Investigation 2 | . 1 . . 1 . . Extermination 1 | . . . . . 1 . Reinforcement 2 | . . . 1 1 . . Assault . | . . . . . . . Garrison 2 | . . . . . 2 . Intercept . | . . . . . . . Searches Triggered . | . . . . . . . Construction Impeded 1 | . . . 1 . . . Haulers Reinforced . | . . . . . . . Active Scanning Responses . | . . . . . . . Cargo Convoy Interrupts . | . . . . . . . Stealth | -11 -10 -9 -9 -8 -7 -7 --------- Run | Scr Mat Mat Min Mat Fac Low Distress Signals 4 | . . . . 4 . . Communications Jammed . | . . . . . . . Distress Signals . | . . . . . . . Times Spotted 78 | . 11 4 11 25 11 16 Peak Tracking Total 7 | . 3 2 3 4 4 7 Tactical Retreats 3 | . . . 1 . 1 1 Traps | -11 -10 -9 -9 -8 -7 -7 ------- Run | Scr Mat Mat Min Mat Fac Low Traps Triggered . | . . . . . . . Indirectly . | . . . . . . . Trap Hack Attempts . | . . . . . . . Triggered . | . . . . . . . Disarmed . | . . . . . . . Reprogrammed . | . . . . . . . Reused . | . . . . . . . Traps Extracted . | . . . . . . . Installed . | . . . . . . . Triggered . | . . . . . . . Machines | -11 -10 -9 -9 -8 -7 -7 ---------- Run | Scr Mat Mat Min Mat Fac Low Machines Disabled 7 | . . 1 1 3 1 1 Max in Single Turn 2 | . . 1 1 2 1 1 Machines Sabotaged . | . . . . . . . Garrisons Compromised . | . . . . . . . Overloaded Fab Kills . | . . . . . . . Hacking | -11 -10 -9 -9 -8 -7 -7 --------- Run | Scr Mat Mat Min Mat Fac Low Machines Accessed 6 | . 1 . . 3 2 . Terminals 2 | . 1 . . 1 . . Fabricators . | . . . . . . . Repair Stations . | . . . . . . . Recycling Units 1 | . . . . 1 . . Scanalyzers 3 | . . . . 1 2 . Garrison Access . | . . . . . . . Total Hacks 25 | . 4 . . 15 6 . Successful 17 | . . . . 11 6 . Failed 8 | . 4 . . 4 . . Catastrophic 2 | . 2 . . . . . Database Lockouts . | . . . . . . . Manual 4 | . 2 . . 1 . 1 Terminals 7 | . 4 . . 3 . . Fabricators . | . . . . . . . Repair Stations . | . . . . . . . Recycling Units 7 | . . . . 7 . . Scanalyzers 11 | . . . . 5 6 . Garrison Access . | . . . . . . . Terminal Hacks 1 | . . . . 1 . . Record 1 | . . . . 1 . . Fabricator Hacks . | . . . . . . . Repair Station Hacks . | . . . . . . . Recycling Unit Hacks 5 | . . . . 5 . . Recycle Component 2 | . . . . 2 . . Process 1 | . . . . 1 . . Retrieve Matter 1 | . . . . 1 . . Retrieve Components 1 | . . . . 1 . . Scanalyzer 11 | . . . . 5 6 . Insert Component 5 | . . . . 2 3 . Analyze 6 | . . . . 3 3 . Garrison Access Hacks . | . . . . . . . Unauthorized Hacks . | . . . . . . . Terminals . | . . . . . . . Fabricators . | . . . . . . . Repair Stations . | . . . . . . . Recycling Units . | . . . . . . . Scanalyzers . | . . . . . . . Garrison Access . | . . . . . . . Data Cores Recovered . | . . . . . . . Used . | . . . . . . . Hacking Detections 5 | . 1 . . 3 1 . Full Trace Events 2 | . 1 . . 1 . . Feedback Events . | . . . . . . . Feedback Blocked . | . . . . . . . Robot Schematics Acquired . | . . . . . . . Robots Built . | . . . . . . . Authchips . | . . . . . . . Time . | . . . . . . . Total Robot Build Rating . | . . . . . . . Part Schematics Acquired 5 | . . . . 2 3 . Parts Built . | . . . . . . . Authchips . | . . . . . . . Time . | . . . . . . . Total Part Build Rating . | . . . . . . . Parts Repaired . | . . . . . . . Time . | . . . . . . . Parts Recycled 2 | . . . . 2 . . Recycled Matter 159 | . . . . 159 . . Retrieved Matter 159 | . . . . 159 . . Retrieved Components . | . . . . . . . Parts Scanalyzed 5 | . . . . 2 3 . Part Schematics Acquired 5 | . . . . 2 3 . Parts Damaged . | . . . . . . . Bothacking | -11 -10 -9 -9 -8 -7 -7 ------------ Run | Scr Mat Mat Min Mat Fac Low Used RIF Installer . | . . . . . . . Robots Hacked . | . . . . . . . Non-combat . | . . . . . . . Combat . | . . . . . . . Robot Hacks Applied . | . . . . . . . Relay Couplers Released . | . . . . . . . Fabnet Peak Effective % . | . . . . . . . Robots Rewired . | . . . . . . . Allies Hacked . | . . . . . . . Hacks Repelled . | . . . . . . . Allies | -11 -10 -9 -9 -8 -7 -7 -------- Run | Scr Mat Mat Min Mat Fac Low Total Allies . | . . . . . . . Largest Group . | . . . . . . . Highest-Rated Group . | . . . . . . . Highest-Rated Ally . | . . . . . . . Total Orders . | . . . . . . . Ally Attacks . | . . . . . . . Total Damage . | . . . . . . . Kills . | . . . . . . . Allies Corrupted . | . . . . . . . Allies Melted . | . . . . . . . Intel | -11 -10 -9 -9 -8 -7 -7 ------- Run | Scr Mat Mat Min Mat Fac Low Robot Analysis Total . | . . . . . . . Derelict Logs Recovered 1 | . . . 1 . . . Drone Launches . | . . . . . . . Drone Recoveries . | . . . . . . . Exploration | -11 -10 -9 -9 -8 -7 -7 ------------- Run | Scr Mat Mat Min Mat Fac Low Turns Passed 7851 | 85 439 461 1656 2254 1094 1862 Spaces Moved 2362 | 50 203 212 443 497 426 531 Core 232 | 50 51 . . 57 . 74 Treads 377 | . 122 . . 38 . 217 Legs 1046 | . . . . 380 426 240 Wheels . | . . . . . . . Hover . | . . . . . . . Flight 707 | . 30 212 443 22 . . Fastest Speed 50 | 50 160 104 174 120 190 50 Average Speed 245 | 148 174 172 273 271 199 302 Slowest Speed 900 | 200 500 174 437 900 260 750 Overloaded Moves . | . . . . . . . Propulsion Burnouts . | . . . . . . . Robots Hopped . | . . . . . . . Cave-ins Triggered . | . . . . . . . Exploration Rate (%) 33 | 4 29 16 72 32 9 74 Regions Visited 6 Branch Regions 2 Pre-discovered Areas . | . . . . . . . Known Exits Taken 1 | . . . . 1 . . Unknown Exits Taken 5 | 1 1 1 1 . 1 . Scrap Searched 3 | . . . 1 . . 2 Spaces Dug . | . . . . . . . Terrain Destroyed 98 | . . 8 1 88 1 . Melee . | . . . . . . . Projectile 2 | . . . 1 . 1 . AOE 96 | . . 8 . 88 . . Terrain Rammed . | . . . . . . . Walls Destroyed . | . . . . . . . Machines Disabled . | . . . . . . . Actions | -11 -10 -9 -9 -8 -7 -7 --------- Run | Scr Mat Mat Min Mat Fac Low Total 3984 | 59 258 273 851 1264 580 699 Wait 1096 | . 4 19 357 605 52 59 Move 2356 | 49 202 211 442 496 425 531 Hop . | . . . . . . . Pick Up 75 | 4 15 10 8 23 12 3 Fast Attach 37 | 6 3 2 2 14 3 7 Attach 30 | . . 2 2 13 3 10 Detach 10 | . 2 1 . 3 . 4 Swap 42 | . 3 2 3 17 12 5 Drop 74 | . 11 7 12 20 19 5 Fire 245 | . 17 19 25 72 54 58 Melee . | . . . . . . . Ram 3 | . . . . 1 . 2 Kick . | . . . . . . . Crush 1 | . 1 . . . . . Escape Stasis . | . . . . . . . Rewire 15 | . . . . . . 15 Trap . | . . . . . . . Miscellaneous . | . . . . . . . Route ------- -11/Scrapyard -10/Materials -9/Materials -9/Mines -8/Materials (discovered 2 exits: *Fac x2) -7/Factory -7/Lower Caves History --------- Turn | Location | Event 3 | -11/Scrapyard | Discovered new exit (range 15) 86 | -11/Scrapyard | Entered Materials 328 | -10/Materials | Build established: Mutant 409 | -10/Materials | Discovered new exit (range 16) 525 | -10/Materials | Entered another Materials area 525 | -9/Materials | Evolved 2 slots: Power x1, Propulsion x1 909 | -9/Materials | Discovered new exit (range 16) 986 | -9/Materials | Entered Mines 1006 | -9/Mines | Learned location of 1 exit from Materials 1264 | -9/Mines | Build established: Scavenger-Mutant 2620 | -9/Mines | Discovered new exit (range 6) 2642 | -9/Mines | Entered Materials 2642 | -8/Materials | Evolved 2 slots: Utility x2 2643 | -8/Materials | Identified exit to Factory 2816 | -8/Materials | Lost 7 parts (2p2n3w) 3580 | -8/Materials | Build established: Mutant 3924 | -8/Materials | Build established: Scavenger-Mutant 4722 | -8/Materials | Core integrity fell below 50% 4875 | -8/Materials | Discovered exit to Factory (range 11) 4896 | -8/Materials | Entered Factory 4896 | -7/Factory | Evolved 2 slots: Power x1, Utility x1 5799 | -7/Factory | Garrison activated, responded to threat 5977 | -7/Factory | Discovered new exit (range 5) 5990 | -7/Factory | Entered Lower Caves 6040 | -7/Lower Caves | Acquired the password to a Derelict Tinkerer's latest research 6052 | -7/Lower Caves | Found Prototype Special Weapon 6052 | -7/Lower Caves | Identified Molecular Deconstructor 6145 | -7/Lower Caves | Caught by Unaware searching for contraband prototypes 6189 | -7/Lower Caves | Caught by Unaware searching for contraband prototypes 6229 | -7/Lower Caves | Lost 4 parts (3p1n) 6774 | -7/Lower Caves | Lost 5 parts (2p2n1w) 7030 | -7/Lower Caves | Build established: Hacker-Mutant 7791 | -7/Lower Caves | Attracted the attention of an 0b10 outpost 7812 | -7/Lower Caves | System corruption reached 10% 7832 | -7/Lower Caves | Core integrity fell below 50% 7847 | -7/Lower Caves | Core integrity fell below 20% 7852 | -7/Lower Caves | Destroyed by Y-64 Sentinel with Wave Gun Last Messages --------------- 07830_ System corrupted by crushing effect (+3). 07831_ Sml. Matter Pod destroyed. 07831_ System corrupted by crushing effect (+3). 07833_ Slammed into B-48 Gladiator. 07835_ Searching scrap... 07835_ Found Com. Wheel. 07835_ Found 23 Matter. 07835_ Acquired Mak. System Shield. 07836_ System corrupted: Energy discharge (-17). 07837_ Acquired Shock Rifle. 07841_ Mak. System Shield destroyed. 07841_ System corrupted by crushing effect (+2). 07843_ B-48 Gladiator destroyed. 07843_ Shock Rifle destroyed. 07843_ System corrupted by crushing effect (+2). 07844_ Penetrated by Slug. 07847_ Machine disabled. 07849_ Corrupted Rnf. Deuterium Engine fries itself beyond repair. 07849_ Penetrated by Slug. 07851_ Critical hit (Burn: +37). Map ----- +----------------------------------------------------+ | ??? #?????????# ???????### #??????? | | ?? ##???????? ????????## ## ##?????? | | ?? ###???????? ## ##????????## ### ##????? | | ?? ?????????? #?####??????????###### ###??? | | ? ????????? ????????????##### #### #??? | | ? ??????? ##????????????## #?# #??? | | ???????? ??????????????# #?# ## #??? | | ????????????????????????# ### #?##??? | | ??????????????????????????# ### #?????? | | # ????????????????????????????# ## #?????? | | ??????????????????????????????# #?????? | | ??????????????????????????????### ## #?????? | | ??????????????????? ######## ##### #?####? | | ??????????????????? ##????#### ## | | ?##???????????????????# ####???## | | ##??????????????????########## ##### | | ##??????????????????????????## | | #???????????????????????????### | | ???????????#????????????## ########## | | ??????????# ?????????????####????????# | | ######??????????? ?????????????????????????# | | #??????????????## ########??????????????????## | | # #?????????????## # # "#???????????????????## | | ?? ????????????# # "#????????????????????? | | ???###?????????### g "#????????????????????? | | ?????????? Y@% #????????????????????? | | ?????????????????# #!b"#????????????????????? | | ?????????????????# %#??#%%"#????????????????????? | | ?????????????????# ####g### #??????????????????? | | ?????????????????# ][ %[![ #??????????????????? | | ?????????????????# ## #######??????????????????? | | ????????????????# ## #????????????????????????? | | ??????????????# ## #????????????????????????? | | #???###???????#% ## %###??????????????????????? | | #?? #???????# ## ##?????????????????????? | | % ?? #?????### ## %#?????????????????????? | | ??? ????## # ## % #?????????????????????? | | ???# #????# %%%#?????????????????????? | | #????# ###??# %% #?????????????????????? | | ????## ##### ### % #?????????????????????? | | ?????#% % ### #?## %#?????????????????????? | | ##???#% #?# #???###%#?????????????????????? | | "#####% """" ###% #??????##?????????????????????? | | % """" #% #?????????????????????????????? | | """" # ##????????????????????????????? | | #### ""% #?# ###??????????????????????????? | | ???# "" ####% ###????????????????????????? | | ???# % """" % ### % ##???????????????????????? | | ???##% "" % % ## % #???????????????????????? | | ????#% % % ### %#???????????????????????? | +----------------------------------------------------+ Best States ------------- Heat Dissipation 51 Energy Generation 34 Energy Capacity 490 Matter Stores 400 Matter Capacity 400 Sight Range 16 Robot Scan Range 14 Terrain Scan Range 16 Terrain Scan Density 85 ECM Strength 1 Armor Coverage 600 Resistance: KI 20 Resistance: TH 30 Resistance: EX 20 Resistance: EM 20 Resistance: I 20 Resistance: S 20 Resistance: P 20 Evasion (%) 55 Recoil Reduction 2 Offensive Hacking 20 Defensive Hacking 11 Item Schematics ----------------- EM Shotgun | -8/Materials | Scanalyzed Shotgun | -8/Materials | Scanalyzed ECM Suite | -7/Factory | Scanalyzed Cesium-ion Thruster | -7/Factory | Scanalyzed Imp. Medium Armor Plating | -7/Factory | Scanalyzed Robot Schematics ------------------ None Fabricated ------------ Nothing Alien Tech Used ----------------- None Achievements -------------- None Challenges ------------ None Game ------ Seed TerrabombWeightScreen Manual? 0 Play Time 00:45:55 Cumulative 86.4 hours Start 2022.06.29 @ 06:40:29 End 2022.06.29 @ 11:33:12 Sessions 3 Manual Loads 0 Difficulty Adventurer Special Mode None Game No. 16 Rogue 0 Adventurer 16 Explorer 0 Win Type - Total 0 Types 0/0/0/0/0/0/0/0/0 Lore% 25 Gallery% 47 Achievement% 31 Wizard Run 0 Options --------- ASCII 0 Keyboard 0 Movement Mouse Keybinds 0 Fullscreen 2 Font 24/Crisp Map View 76x50 Tactical HUD 1 Map Filters NONE Filters NONE Steam 1 RUN: fb7c379a-59b3-4894-a4e4-51feeaa7fe4e